fUSD/lending_fUSD_20250826
["ID","MTS","AMOUNT","RATE_DAILY","PERIOD"]
[381519523,1756247445936,-383.469518,0.00026102,7]
[381519524,1756247445946,-383.469518,0.00026102,7]
[381519525,1756247445956,-151.0,0.00026102,7]
[381519526,1756247445968,-383.469518,0.00026102,7]
[381519527,1756247445978,-151.0,0.00026102,7]
[381519528,1756247445988,-383.469518,0.00026102,7]
[381519529,1756247445998,-151.0,0.00026102,7]
[381519530,1756247446008,-151.0,0.00026102,7]
[381519531,1756247446018,-151.0,0.00026102,7]
[381519532,1756247446028,-151.0,0.00026102,7]
[381519533,1756247446039,-151.0,0.00026102,7]
[381519534,1756247446048,-151.0,0.00026102,7]
[381519535,1756247446058,-151.0,0.00026102,7]
[381519536,1756247446068,-151.0,0.00026102,7]
[381519537,1756247446079,-151.0,0.00026102,7]
[381519538,1756247446090,-151.0,0.00026102,7]
[381519539,1756247446099,-151.0,0.00026102,7]
[381519540,1756247446109,-151.0,0.00026102,7]
[381519541,1756247446118,-151.0,0.00026102,7]
[381519542,1756247446129,-151.0,0.00026102,7]
[381519543,1756247446138,-201.252144,0.00026102,7]
[381519544,1756247446147,-151.0,0.00026102,7]
[381519545,1756247446157,-151.0,0.00026102,7]
[381519546,1756247446167,-151.0,0.00026102,7]
[381519547,1756247446176,-151.0,0.00026102,7]
[381519548,1756247446187,-151.0,0.00026102,7]
[381519549,1756247446197,-151.0,0.00026102,7]
[381519550,1756247446208,-230.412768,0.00026102,7]
[381519551,1756247446218,-234.015791,0.00026102,7]
[381519552,1756247446227,-191.320936,0.00026102,7]
[381519553,1756247446238,-151.0,0.00026102,7]
[381519554,1756247446247,-234.015791,0.00026102,7]
[381519555,1756247446256,-191.320936,0.00026102,7]
[381519556,1756247446265,-234.015791,0.00026102,7]
[381519557,1756247446275,-191.320936,0.00026102,7]
[381519558,1756247446284,-191.320936,0.00026102,7]
[381519559,1756247446293,-234.015791,0.00026102,7]
[381519560,1756247446303,-151.0,0.00026102,7]
[381519561,1756247446312,-151.0,0.00026102,7]
[381519562,1756247446325,-151.0,0.00026102,7]
[381519563,1756247446342,-151.0,0.00026102,7]
[381519564,1756247446354,-533.060755,0.00026102,7]
[381519565,1756247446363,-533.060755,0.00026102,7]
[381519566,1756247446375,-533.060755,0.00026102,7]
[381519567,1756247446384,-533.060759,0.00026102,7]
[381519568,1756247446494,-3756.966919,0.00026102,7]
[381519569,1756247446504,-3756.966919,0.00026102,7]
[381519570,1756247446514,-669.299743,0.00026102,7]
[381519571,1756247446523,-151.0,0.00026102,7]
[381519572,1756247446533,-3756.966919,0.00026102,7]
[381519573,1756247446542,-669.299743,0.00026102,7]
[381519574,1756247446551,-3756.96691,0.00026102,7]
[381519575,1756247446561,-669.299743,0.00026102,7]
[381519576,1756247446571,-669.299739,0.00026102,7]
[381519577,1756247446580,-234.566172,0.00026102,7]
[381519578,1756247446589,-151.0,0.00026102,7]
[381519579,1756247446598,-234.566172,0.00026102,7]
[381519580,1756247446607,-151.0,0.00026102,7]
[381519581,1756247446616,-234.566172,0.00026102,7]
[381519582,1756247446626,-234.566164,0.00026102,7]
[381519583,1756247446635,-151.0,0.00026102,7]
[381519584,1756247446644,-195.442212,0.00026102,7]
[381519585,1756247446653,-151.0,0.00026102,7]
[381519586,1756247446663,-151.0,0.00026102,7]
[381519587,1756247446672,-151.0,0.00026102,7]
[381519588,1756247446681,-182.442158,0.00026102,7]
[381519589,1756247446690,-443.059539,0.00026102,7]
[381519590,1756247446699,-443.059539,0.00026102,7]
[381519591,1756247446708,-443.059539,0.00026102,7]
[381519592,1756247446717,-443.059543,0.00026102,7]
[381519593,1756247446726,-151.0,0.00026102,7]
[381519594,1756247446736,-151.0,0.00026102,7]
[381519595,1756247446746,-151.0,0.00026102,7]
[381519596,1756247446755,-151.0,0.00026102,7]
[381519597,1756247446764,-171.154378,0.00026102,7]
[381519598,1756247446773,-151.0,0.00026102,7]
[381519599,1756247446782,-171.154378,0.00026102,7]
[381519600,1756247446791,-160.0,0.00026102,7]
[381519601,1756247446802,-171.154378,0.00026102,7]
[381519602,1756247446811,-151.0,0.00026102,7]
[381519603,1756247446820,-151.0,0.00026102,7]
[381519604,1756247446830,-171.154375,0.00026102,7]
[381519605,1756247446841,-151.0,0.00026102,7]
[381519606,1756247446850,-187.168866,0.00026102,7]
[381519607,1756247446859,-187.168866,0.00026102,7]
[381519608,1756247446869,-187.168866,0.00026102,7]
[381519609,1756247446879,-151.0,0.00026102,7]
[381519610,1756247446888,-187.168867,0.00026102,7]
[381519611,1756247446897,-730.058462,0.00026102,7]
[381519612,1756247446906,-219.965616,0.00026102,7]
[381519613,1756247446916,-469.13,0.00026105,2]
[381519614,1756247446925,-799.32,0.00026105,2]
[381519615,1756247446934,-161.6,0.00026124,2]
[381519616,1756247446944,-194.12654992,0.00026133,2]
[381519617,1756247446954,-2554.13304701,0.0002617,2]
[381519618,1756247446963,-1294.0,0.0002623,7]
[381519619,1756247446972,-1500.0,0.00026246,2]
[381519620,1756247446982,-14162.07323583,0.00026293,5]
[381519621,1756247446991,-860.72,0.000263,2]
[381519622,1756247447000,-150.0,0.00026302,2]
[381519623,1756247447010,-150.0,0.00026302,2]
[381519624,1756247447019,-150.0,0.00026302,2]
[381519625,1756247447028,-500.0,0.00026302,2]
[381519626,1756247447037,-150.0,0.00026302,2]
[381519627,1756247447047,-150.0,0.00026302,2]
[381519628,1756247447056,-150.0,0.00026302,2]
[381519629,1756247447065,-150.0,0.00026302,2]
[381519630,1756247447075,-150.0,0.00026302,2]
[381519631,1756247447085,-150.0,0.00026302,2]
[381519632,1756247447094,-150.0,0.00026302,2]
[381519633,1756247447103,-617.0,0.00026302,2]
[381519634,1756247447112,-500.0,0.00026302,2]
[381519635,1756247447122,-500.0,0.00026302,2]
[381519636,1756247447131,-150.0,0.00026302,2]
[381519637,1756247447141,-355.0,0.00026324,5]
[381519638,1756247447150,-500.0,0.00026342,2]
[381519639,1756247447159,-1294.0,0.00026359,2]
[381519640,1756247447168,-2545.27296,0.00026368,2]
[381519641,1756247447178,-628.0,0.00026438,2]
[381519642,1756247447187,-1160.60141138,0.00026444,2]
[381519643,1756247447196,-2000.0,0.00026444,2]
[381519644,1756247447206,-153.0,0.00026475,2]
[381519645,1756247447215,-153.0,0.00026475,2]
[381519646,1756247447224,-153.0,0.00026475,2]
[381519647,1756247447233,-153.0,0.00026475,2]
[381519648,1756247447243,-153.0,0.00026475,2]
[381519649,1756247447252,-153.0,0.00026475,2]
[381519650,1756247447261,-153.0,0.00026475,2]
[381519651,1756247447270,-153.0,0.00026475,2]
[381519652,1756247447280,-153.0,0.00026475,2]
[381519653,1756247447290,-153.0,0.00026475,2]
[381519654,1756247447299,-153.0,0.00026475,2]
[381519655,1756247447308,-153.0,0.00026475,2]
[381519656,1756247447318,-1294.0,0.00026487,2]
[381519657,1756247447328,-628.0,0.00026488,2]
[381519658,1756247447340,-1000.0,0.000265,2]
[381519659,1756247447349,-628.0,0.00026509,2]
[381519660,1756247447358,-277.35679052,0.00026533,2]
[381519661,1756247447367,-150.0,0.00026576,2]
[381519662,1756247447378,-150.0,0.00026576,2]
[381519663,1756247447387,-150.0,0.00026576,2]
[381519664,1756247447396,-500.0,0.00026576,2]
[381519665,1756247447406,-150.0,0.00026576,2]
[381519666,1756247447415,-150.0,0.00026576,2]
[381519667,1756247447424,-150.0,0.00026576,2]
[381519668,1756247447434,-150.0,0.00026576,2]
[381519669,1756247447443,-150.0,0.00026576,2]
[381519670,1756247447452,-617.0,0.00026576,2]
[381519671,1756247447461,-500.0,0.00026576,2]
[381519672,1756247447471,-500.0,0.00026576,2]
[381519673,1756247447480,-150.0,0.00026576,2]
[381519674,1756247447489,-348.85,0.00026611,2]
[381519675,1756247447499,-305.08,0.00026611,2]
[381519676,1756247447507,-332.24,0.00026611,2]
[381519677,1756247447516,-191.33,0.00026676,2]
[381519678,1756247447526,-5632.28126561,0.00026783,2]
[381519679,1756247447535,-2000.0,0.00026794,2]
[381519680,1756247447545,-14018.48288216,0.000268,2]
[381519681,1756247447554,-4154.54,0.000268,7]
[381519682,1756247447563,-161.45,0.000268,7]
[381519683,1756247447572,-628.0,0.00026836,2]
[381519684,1756247447582,-150.0,0.0002685,2]
[381519685,1756247447591,-150.0,0.0002685,2]
[381519686,1756247447599,-200.0,0.0002685,2]
[381519687,1756247447608,-500.0,0.0002685,2]
[381519688,1756247447617,-200.0,0.0002685,2]
[381519689,1756247447628,-200.0,0.0002685,2]
[381519690,1756247447637,-150.0,0.0002685,2]
[381519691,1756247447647,-200.0,0.0002685,2]
[381519692,1756247447656,-617.0,0.0002685,2]
[381519693,1756247447665,-500.0,0.0002685,2]
[381519694,1756247447674,-500.0,0.0002685,2]
[381519695,1756247447683,-200.0,0.0002685,2]
[381519696,1756247447692,-155.3768949,0.00026852,5]
[381519697,1756247447702,-844.63891918,0.00026886,2]
[381519698,1756247447711,-200.0,0.0002689,2]
[381519699,1756247447720,-30980.94,0.000269,7]
[381519700,1756247447729,-4952.7297012,0.00026969,2]
[381519701,1756247447738,-1832.3137663,0.00026969,2]
[381519702,1756247447747,-200.0,0.00026971,2]
[381519703,1756247447757,-152.0,0.0002698,3]
[381519704,1756247447766,-152.0,0.0002698,3]
[381519705,1756247447775,-1221.0,0.0002698,3]
[381519706,1756247447784,-1000.0,0.0002698,2]
[381519707,1756247447793,-1000.0,0.0002698,2]
[381519708,1756247447802,-1000.0,0.0002698,2]
[381519709,1756247447811,-1000.0,0.0002698,2]
[381519710,1756247447820,-1000.0,0.0002698,2]
[381519711,1756247447829,-1000.0,0.0002698,2]
[381519712,1756247447838,-1000.0,0.0002698,2]
[381519713,1756247447847,-1000.0,0.0002698,2]
[381519714,1756247447856,-1000.0,0.0002698,2]
[381519715,1756247447866,-1000.0,0.0002698,2]
[381519716,1756247447875,-1000.0,0.0002698,2]
[381519717,1756247447885,-1000.0,0.0002698,2]
[381519718,1756247447894,-1000.0,0.0002698,2]
[381519719,1756247447903,-1000.0,0.0002698,2]
[381519720,1756247447913,-1000.0,0.0002698,2]
[381519721,1756247447922,-1000.0,0.0002698,2]
[381519722,1756247447933,-1000.0,0.0002698,2]
[381519723,1756247447943,-1000.0,0.0002698,2]
[381519724,1756247447952,-1000.0,0.0002698,2]
[381519725,1756247447962,-1000.0,0.0002698,2]
[381519726,1756247447971,-1000.0,0.0002698,2]
[381519727,1756247447979,-1000.0,0.0002698,2]
[381519728,1756247447988,-1000.0,0.0002698,2]
[381519729,1756247447998,-1000.0,0.0002698,2]
[381519730,1756247448007,-434.0,0.0002698,2]
[381519731,1756247448017,-1000.0,0.0002698,2]
[381519732,1756247448026,-302.6387865,0.0002698,2]
[381519733,1756247448035,-628.0,0.00026988,7]
[381519734,1756247448044,-14162.07323583,0.0002699,6]
[381519735,1756247448053,-414.2821876,0.00026992,2]
[381519736,1756247448064,-722.0,0.00027,2]
[381519737,1756247448074,-300.93229036,0.00027,2]
[381519738,1756247448083,-150.0,0.00027,2]
[381519739,1756247448093,-6496.76975266,0.00027,3]
[381519740,1756247448102,-383.469518,0.00027,7]
[381519741,1756247448111,-383.469518,0.00027,7]
[381519742,1756247448121,-151.0,0.00027,7]
[381519743,1756247448131,-383.469518,0.00027,7]
[381519744,1756247448140,-151.0,0.00027,7]
[381519745,1756247448149,-383.469518,0.00027,7]
[381519746,1756247448159,-151.0,0.00027,7]
[381519747,1756247448168,-151.0,0.00027,7]
[381519748,1756247448177,-151.0,0.00027,7]
[381519749,1756247448186,-151.0,0.00027,7]
[381519750,1756247448195,-154.314904,0.00027,7]
[381519751,1756247448204,-151.0,0.00027,7]
[381519752,1756247448213,-151.0,0.00027,7]
[381519753,1756247448222,-151.0,0.00027,7]
[381519754,1756247448232,-151.0,0.00027,7]
[381519755,1756247448241,-151.0,0.00027,7]
[381519756,1756247448250,-151.0,0.00027,7]
[381519757,1756247448259,-151.0,0.00027,7]
[381519758,1756247448269,-151.0,0.00027,7]
[381519759,1756247448278,-900.0,0.00027008,10]
[381519760,1756247448288,-900.0,0.00027008,10]
[381519761,1756247448297,-900.0,0.00027008,10]
[381519762,1756247448306,-900.0,0.00027008,10]
[381519763,1756247448316,-900.0,0.00027008,10]
[381519764,1756247448325,-900.0,0.00027008,10]
[381519765,1756247448337,-900.0,0.00027008,10]
[381519766,1756247448346,-900.0,0.00027008,10]
[381519767,1756247448355,-628.0,0.00027023,2]
[381519768,1756247448364,-628.0,0.00027029,2]
[381519769,1756247448375,-628.0,0.00027038,2]
[381519770,1756247448384,-4000.0,0.00027039,4]
[381519771,1756247448393,-1379.0,0.00027088,2]
[381519772,1756247448402,-16006.05,0.000271,2]
[381519773,1756247448412,-574.78,0.000271,7]
[381519774,1756247448421,-1000.0,0.000271,2]
[381519775,1756247448431,-343.2792285,0.00027104,2]
[381519776,1756247448440,-226.47561258,0.00027124,2]
[381519777,1756247448449,-150.0,0.00027124,2]
[381519778,1756247448458,-500.0,0.00027124,2]
[381519779,1756247448468,-150.0,0.00027124,2]
[381519780,1756247448477,-617.0,0.00027124,2]
[381519781,1756247448487,-500.0,0.00027124,2]
[381519782,1756247448497,-500.0,0.00027124,2]
[381519783,1756247448506,-628.0,0.0002717,2]
[381519784,1756247448516,-200.0,0.00027177,2]
[381519785,1756247448525,-213.0,0.0002718,2]
[381519786,1756247448534,-310.0,0.0002718,2]
[381519787,1756247448543,-1000.0,0.0002718,2]
[381519788,1756247448553,-245.0,0.00027185,7]
[381519789,1756247448562,-314.0,0.00027185,7]
[381519790,1756247448572,-200.0,0.0002724,2]
[381519791,1756247448581,-185.15795142,0.0002725,2]
[381519792,1756247448591,-1184.83,0.00027259,2]
[381519793,1756247448601,-1537.1599617,0.00027279,2]
[381519794,1756247448610,-193.04742722,0.00027287,2]
[381519795,1756247448619,-165.387328,0.00027287,2]
[381519796,1756247448628,-151.0,0.00027287,7]
[381519797,1756247448637,-151.0,0.00027287,7]
[381519798,1756247448647,-207.01584,0.00027287,7]
[381519799,1756247448658,-151.0,0.00027287,7]
[381519800,1756247448668,-151.0,0.00027287,7]
[381519801,1756247448677,-151.0,0.00027287,7]
[381519802,1756247448687,-234.015791,0.00027287,7]
[381519803,1756247448697,-191.320936,0.00027287,7]
[381519804,1756247448706,-151.0,0.00027287,7]
[381519805,1756247448715,-234.015791,0.00027287,7]
[381519806,1756247448724,-191.320936,0.00027287,7]
[381519807,1756247448734,-234.015791,0.00027287,7]
[381519808,1756247448743,-191.320936,0.00027287,7]
[381519809,1756247448752,-191.320936,0.00027287,7]
[381519810,1756247448761,-234.015791,0.00027287,7]
[381519811,1756247448771,-151.0,0.00027287,7]
[381519812,1756247448780,-151.0,0.00027287,7]
[381519813,1756247448789,-151.0,0.00027287,7]
[381519814,1756247448799,-5000.0,0.00027287,2]
[381519815,1756247448808,-156.4965233,0.00027297,4]
[381519816,1756247448818,-156.4965233,0.00027297,4]
[381519817,1756247448827,-156.4965233,0.00027297,4]
[381519818,1756247448837,-156.4965233,0.00027297,4]
[381519819,1756247448846,-156.4965233,0.00027297,4]
[381519820,1756247448855,-156.4965233,0.00027297,4]
[381519821,1756247448865,-156.4965233,0.00027297,4]
[381519822,1756247448874,-156.4965233,0.00027297,4]
[381519823,1756247448884,-156.4965233,0.00027297,4]
[381519824,1756247448893,-156.4965233,0.00027297,4]
[381519825,1756247448903,-1019.28,0.000273,2]
[381519826,1756247448912,-2500.0,0.00027342,2]
[381519827,1756247448922,-281.454285,0.00027351,7]
[381519828,1756247448932,-281.454285,0.00027351,7]
[381519829,1756247448941,-151.0,0.00027351,7]
[381519830,1756247448950,-281.454285,0.00027351,7]
[381519831,1756247448960,-281.454285,0.00027351,7]
[381519832,1756247448969,-151.0,0.00027351,7]
[381519833,1756247448978,-151.0,0.00027351,7]
[381519834,1756247448987,-450.255025,0.00027351,7]
[381519835,1756247448997,-151.0,0.00027351,7]
[381519836,1756247449006,-450.255025,0.00027351,7]
[381519837,1756247449015,-450.255025,0.00027351,7]
[381519838,1756247449025,-151.0,0.00027351,7]
[381519839,1756247449035,-450.255025,0.00027351,7]
[381519840,1756247449045,-235.554383,0.00027351,7]
[381519841,1756247449056,-235.554383,0.00027351,7]
[381519842,1756247449065,-235.554383,0.00027351,7]
[381519843,1756247449075,-235.554383,0.00027351,7]
[381519844,1756247449084,-151.0,0.00027351,7]
[381519845,1756247449093,-151.0,0.00027351,7]
[381519846,1756247449103,-151.0,0.00027351,7]
[381519847,1756247449112,-151.0,0.00027351,7]
[381519848,1756247449122,-295.392752,0.00027351,7]
[381519849,1756247449132,-1379.0,0.00027351,2]
[381519850,1756247449142,-493.2036654,0.0002737,2]
[381519851,1756247449151,-500.0,0.00027373,2]
[381519852,1756247449162,-500.0,0.00027373,2]
[381519853,1756247449172,-500.0,0.00027373,2]
[381519854,1756247449181,-500.0,0.00027373,2]
[381519855,1756247449191,-500.0,0.00027373,2]
[381519856,1756247449200,-214.8475065,0.00027377,2]
[381519857,1756247449210,-151.0,0.00027377,7]
[381519858,1756247449219,-151.0,0.00027377,7]
[381519859,1756247449229,-151.0,0.00027377,7]
[381519860,1756247449238,-261.986992,0.00027377,7]
[381519861,1756247449247,-151.0,0.00027377,7]
[381519862,1756247449256,-196.857677,0.00027377,7]
[381519863,1756247449265,-151.0,0.00027377,7]
[381519864,1756247449274,-151.0,0.00027377,7]
[381519865,1756247449284,-151.0,0.00027377,7]
[381519866,1756247449294,-151.0,0.00027377,7]
[381519867,1756247449303,-151.0,0.00027377,7]
[381519868,1756247449313,-278.61384,0.00027377,7]
[381519869,1756247449323,-286.68988,0.00027377,7]
[381519870,1756247449336,-151.0,0.00027377,7]
[381519871,1756247449350,-191.508352,0.00027377,7]
[381519872,1756247449362,-178.232185,0.00027377,7]
[381519873,1756247449372,-191.508352,0.00027377,7]
[381519874,1756247449382,-191.508352,0.00027377,7]
[381519875,1756247449391,-191.508352,0.00027377,7]
[381519876,1756247449401,-182.86089,0.00027377,7]
[381519877,1756247449412,-182.86089,0.00027377,7]
[381519878,1756247449422,-182.86089,0.00027377,7]
[381519879,1756247449432,-182.86089,0.00027377,7]
[381519880,1756247449441,-151.0,0.00027377,7]
[381519881,1756247449451,-151.0,0.00027377,7]
[381519882,1756247449461,-289.142064,0.00027377,7]
[381519883,1756247449471,-289.142064,0.00027377,7]
[381519884,1756247449479,-289.142064,0.00027377,7]
[381519885,1756247449488,-289.142064,0.00027377,7]
[381519886,1756247449497,-151.0,0.00027377,7]
[381519887,1756247449506,-151.0,0.00027377,7]
[381519888,1756247449515,-151.0,0.00027377,7]
[381519889,1756247449526,-262.881824,0.00027377,7]
[381519890,1756247449535,-262.881824,0.00027377,7]
[381519891,1756247449546,-262.881824,0.00027377,7]
[381519892,1756247449556,-262.881824,0.00027377,7]
[381519893,1756247449566,-151.0,0.00027377,7]
[381519894,1756247449575,-184.71052,0.00027377,7]
[381519895,1756247449584,-151.0,0.00027377,7]
[381519896,1756247449594,-151.0,0.00027377,7]
[381519897,1756247449604,-151.0,0.00027377,7]
[381519898,1756247449613,-151.0,0.00027377,7]
[381519899,1756247449623,-151.0,0.00027377,7]
[381519900,1756247449631,-187.203613,0.00027377,7]
[381519901,1756247449641,-329.085565,0.00027377,7]
[381519902,1756247449650,-329.085565,0.00027377,7]
[381519903,1756247449659,-329.085565,0.00027377,7]
[381519904,1756247449668,-294.459078,0.00027377,7]
[381519905,1756247449677,-294.459078,0.00027377,7]
[381519906,1756247449690,-329.085565,0.00027377,7]
[381519907,1756247449699,-294.459078,0.00027377,7]
[381519908,1756247449708,-294.459078,0.00027377,7]
[381519909,1756247449717,-151.0,0.00027377,7]
[381519910,1756247449727,-151.0,0.00027377,7]
[381519911,1756247449736,-151.0,0.00027377,7]
[381519912,1756247449746,-151.0,0.00027377,7]
[381519913,1756247449755,-151.0,0.00027377,7]
[381519914,1756247449765,-281.454285,0.00027377,7]
[381519915,1756247449774,-281.454285,0.00027377,7]
[381519916,1756247449784,-151.0,0.00027377,7]
[381519917,1756247449794,-281.454285,0.00027377,7]
[381519918,1756247449803,-281.454285,0.00027377,7]
[381519919,1756247449813,-151.0,0.00027377,7]
[381519920,1756247449823,-151.0,0.00027377,7]
[381519921,1756247449832,-450.255025,0.00027377,7]
[381519922,1756247449843,-266.705328,0.00027377,7]
[381519923,1756247449852,-450.255025,0.00027377,7]
[381519924,1756247449861,-450.255025,0.00027377,7]
[381519925,1756247449870,-450.255025,0.00027377,7]
[381519926,1756247449880,-235.554383,0.00027377,7]
[381519927,1756247449890,-235.554383,0.00027377,7]
[381519928,1756247449899,-235.554383,0.00027377,7]
[381519929,1756247449908,-235.554383,0.00027377,7]
[381519930,1756247449917,-151.0,0.00027377,7]
[381519931,1756247449927,-151.0,0.00027377,7]
[381519932,1756247449936,-151.0,0.00027377,7]
[381519933,1756247449945,-383.469518,0.00027377,7]
[381519934,1756247449955,-383.469518,0.00027377,7]
[381519935,1756247449964,-151.0,0.00027377,7]
[381519936,1756247449973,-383.469518,0.00027377,7]
[381519937,1756247449982,-151.0,0.00027377,7]
[381519938,1756247449995,-383.469518,0.00027377,7]
[381519939,1756247450016,-151.0,0.00027377,7]
[381519940,1756247450030,-151.0,0.00027377,7]
[381519941,1756247450039,-151.0,0.00027377,7]
[381519942,1756247450049,-151.0,0.00027377,7]
[381519943,1756247450058,-151.0,0.00027377,7]
[381519944,1756247450067,-151.0,0.00027377,7]
[381519945,1756247450077,-151.0,0.00027377,7]
[381519946,1756247450086,-151.0,0.00027377,7]
[381519947,1756247450095,-198.611984,0.00027377,7]
[381519948,1756247450104,-151.0,0.00027377,7]
[381519949,1756247450113,-151.0,0.00027377,7]
[381519950,1756247450122,-182.990176,0.00027377,7]
[381519951,1756247450131,-151.0,0.00027377,7]
[381519952,1756247450140,-151.0,0.00027377,7]
[381519953,1756247450150,-151.0,0.00027377,7]
[381519954,1756247450160,-234.015791,0.00027377,7]
[381519955,1756247450168,-191.320936,0.00027377,7]
[381519956,1756247450177,-151.0,0.00027377,7]
[381519957,1756247450187,-234.015791,0.00027377,7]
[381519958,1756247450196,-191.320936,0.00027377,7]
[381519959,1756247450205,-191.320936,0.00027377,7]
[381519960,1756247450214,-234.015791,0.00027377,7]
[381519961,1756247450223,-191.320944,0.00027377,7]
[381519962,1756247450233,-234.015787,0.00027377,7]
[381519963,1756247450242,-151.0,0.00027377,7]
[381519964,1756247450251,-151.0,0.00027377,7]
[381519965,1756247450261,-151.184429,0.00027378,7]
[381519966,1756247450270,-151.0,0.00027378,7]
[381519967,1756247450279,-4125.4478851,0.00027378,2]
[381519968,1756247450288,-383.469518,0.00027378,7]
[381519969,1756247450298,-383.469518,0.00027378,7]
[381519970,1756247450307,-383.469518,0.00027378,7]
[381519971,1756247450317,-151.0,0.00027378,7]
[381519972,1756247450326,-383.46951,0.00027378,7]
[381519973,1756247450339,-151.0,0.00027378,7]
[381519974,1756247450348,-151.0,0.00027378,7]
[381519975,1756247450357,-151.0,0.00027378,7]
[381519976,1756247450366,-151.0,0.00027378,7]
[381519977,1756247450378,-151.0,0.00027378,7]
[381519978,1756247450387,-151.0,0.00027378,7]
[381519979,1756247450397,-151.0,0.00027378,7]
[381519980,1756247450409,-151.0,0.00027378,7]
[381519981,1756247450420,-151.0,0.00027378,7]
[381519982,1756247450430,-1526.2522706,0.00027378,2]
[381519983,1756247450439,-108059.902496,0.00027387,2]
[381519984,1756247450449,-2689.14484854,0.00027387,2]
[381519985,1756247450459,-151.0,0.00027387,7]
[381519986,1756247450468,-151.0,0.00027387,7]
[381519987,1756247450479,-151.0,0.00027387,7]
[381519988,1756247450488,-151.0,0.00027387,7]
[381519989,1756247450497,-151.0,0.00027387,7]
[381519990,1756247450507,-151.0,0.00027387,7]
[381519991,1756247450516,-151.0,0.00027387,7]
[381519992,1756247450526,-151.0,0.00027387,7]
[381519993,1756247450535,-151.0,0.00027387,7]
[381519994,1756247450673,-151.0,0.00027387,2]
[381519995,1756247450684,-151.0,0.00027387,7]
[381519996,1756247450695,-151.0,0.00027387,7]
[381519997,1756247450705,-151.0,0.00027387,7]
[381519998,1756247450715,-151.0,0.00027387,7]
[381519999,1756247450725,-151.0,0.00027387,7]
[381520000,1756247450735,-151.0,0.00027387,7]
[381520001,1756247450745,-151.0,0.00027387,7]
[381520002,1756247450755,-151.0,0.00027387,7]
[381520003,1756247450765,-151.0,0.00027387,7]
[381520004,1756247450774,-151.0,0.00027387,7]
[381520005,1756247450783,-189.171718,0.00027387,7]
[381520006,1756247450793,-151.0,0.00027387,7]
[381520007,1756247450802,-151.0,0.00027387,7]
[381520008,1756247450811,-151.0,0.00027387,7]
[381520009,1756247450820,-151.0,0.00027387,7]
[381520010,1756247450829,-151.0,0.00027387,7]
[381520011,1756247450838,-151.0,0.00027387,7]
[381520012,1756247450847,-151.0,0.00027387,7]
[381520013,1756247450856,-151.0,0.00027387,7]
[381520014,1756247450865,-151.0,0.00027387,7]
[381520015,1756247450874,-151.0,0.00027387,7]
[381520016,1756247450883,-151.0,0.00027387,7]
[381520017,1756247450892,-151.0,0.00027387,7]
[381520018,1756247450901,-151.0,0.00027387,7]
[381520019,1756247450910,-151.0,0.00027387,7]
[381520020,1756247450919,-151.0,0.00027387,7]
[381520021,1756247450928,-151.0,0.00027387,7]
[381520022,1756247450937,-151.0,0.00027387,7]